fUST/lending_fUST_20240826
["ID","MTS","AMOUNT","RATE_DAILY","PERIOD"]
[335966818,1724645463849,-939.94,0.00013433,2]
[335966819,1724645463859,-560.33,0.00013433,2]
[335966820,1724645463868,-500.0,0.00013433,2]
[335966821,1724645463878,-500.0,0.00013433,2]
[335966822,1724645463888,-500.0,0.00013433,2]
[335966823,1724645463897,-611.83,0.00013433,2]
[335966824,1724645463907,-686.76,0.00013433,2]
[335966825,1724645463917,-500.0,0.00013433,2]
[335966826,1724645463926,-500.0,0.00013433,2]
[335966827,1724645463935,-976.48,0.00013433,2]
[335966828,1724645463945,-863.24,0.00013433,2]
[335966829,1724645463954,-1313.21,0.00013433,2]
[335966830,1724645463963,-1463.07,0.00013433,2]
[335966831,1724645463973,-500.0,0.00013433,2]
[335966832,1724645463982,-792.06,0.00013433,2]
[335966833,1724645463992,-568.6423941,0.00013433,2]
[335966834,1724645464001,-662.49,0.00013433,2]
[335966835,1724645464010,-500.0,0.00013433,2]
[335966836,1724645464019,-500.0,0.00013433,2]
[335966837,1724645464028,-651.38,0.00013433,2]
[335966838,1724645464037,-1180.48,0.00013433,2]
[335966839,1724645464046,-4146.7,0.00013433,2]
[335966840,1724645464055,-500.0,0.00013433,2]
[335966841,1724645464065,-931.06,0.00013433,2]
[335966842,1724645464074,-500.0,0.00013433,2]
[335966843,1724645464083,-1089.41,0.00013433,2]
[335966844,1724645464092,-549.09,0.00013433,2]
[335966845,1724645464102,-500.0,0.00013433,2]
[335966846,1724645464111,-590.46,0.00013433,2]
[335966847,1724645464121,-500.0,0.00013433,2]
[335966848,1724645464130,-517.52,0.00013433,2]
[335966849,1724645464140,-4166.39,0.00013433,2]
[335966850,1724645464149,-3358.17,0.00013433,2]
[335966851,1724645464159,-716.61,0.00013433,2]
[335966852,1724645464168,-651.97,0.00013433,2]
[335966853,1724645464177,-648.22,0.00013433,2]
[335966854,1724645464186,-34978.0,0.00013433,2]
[335966855,1724645464197,-726.5,0.00013433,2]
[335966856,1724645464205,-187.10364623,0.00013433,2]
[335966857,1724645464215,-500.0,0.00013433,2]
[335966858,1724645464224,-500.0,0.00013433,2]
[335966859,1724645464233,-608.89,0.00013433,2]
[335966860,1724645464243,-1267.99,0.00013433,2]
[335966861,1724645464252,-500.0,0.00013433,2]
[335966862,1724645464262,-901.99,0.00013433,2]
[335966863,1724645464271,-729.85,0.00013433,2]
[335966864,1724645464280,-890.55,0.00013433,2]
[335966865,1724645464289,-500.0,0.00013433,2]
[335966866,1724645464299,-775.56,0.00013433,2]
[335966867,1724645464308,-874.83,0.00013433,2]
[335966868,1724645464320,-535.28,0.00013433,2]
[335966869,1724645464329,-618.82,0.00013433,2]
[335966870,1724645464338,-559.24,0.00013433,2]
[335966871,1724645464347,-524.35,0.00013433,2]
[335966872,1724645464357,-1320.24,0.00013433,2]
[335966873,1724645464366,-2013.57,0.00013433,2]
[335966874,1724645464375,-947.96,0.00013433,2]
[335966875,1724645464384,-574.56,0.00013433,2]
[335966876,1724645464395,-712.0,0.00013433,2]
[335966877,1724645464404,-500.0,0.00013433,2]
[335966878,1724645464413,-565.4,0.00013433,2]
[335966879,1724645464422,-647.46,0.00013433,2]
[335966880,1724645464432,-676.76,0.00013433,2]
[335966881,1724645464441,-575.35,0.00013433,2]
[335966882,1724645464451,-500.0,0.00013433,2]
[335966883,1724645464460,-1087.34,0.00013433,2]
[335966884,1724645464468,-626.87,0.00013433,2]
[335966885,1724645464477,-500.0,0.00013433,2]
[335966886,1724645464486,-870.51,0.00013433,2]
[335966887,1724645464495,-608.41,0.00013433,2]
[335966888,1724645464505,-685.54,0.00013433,2]
[335966889,1724645464514,-503.83,0.00013433,2]
[335966890,1724645464523,-814.72,0.00013433,2]
[335966891,1724645464532,-500.0,0.00013433,2]
[335966892,1724645464541,-928.43,0.00013433,2]
[335966893,1724645464550,-591.66,0.00013433,2]
[335966894,1724645464559,-500.0,0.00013433,2]
[335966895,1724645464569,-1482.66,0.00013433,2]
[335966896,1724645464577,-1494.93,0.00013433,2]
[335966897,1724645464587,-500.0,0.00013433,2]
[335966898,1724645464596,-1116.442269,0.00013433,2]
[335966899,1724645464605,-500.0,0.00013433,2]
[335966900,1724645464614,-500.0,0.00013433,2]
[335966901,1724645464623,-500.0,0.00013433,2]
[335966902,1724645464632,-2591.66,0.00013433,2]
[335966903,1724645464641,-1116.442271,0.00013433,2]
[335966904,1724645464649,-572.0,0.00013433,2]
[335966905,1724645464658,-776.42,0.00013433,2]
[335966906,1724645464667,-5628.37,0.00013442,2]
[335966907,1724645464676,-500.0,0.00013442,2]
[335966908,1724645464685,-676.73,0.00013442,2]
[335966909,1724645464695,-10603.96,0.00013442,2]
[335966910,1724645464712,-500.0,0.00013442,2]
[335966911,1724645464722,-754.79,0.00013442,2]
[335966912,1724645464731,-1165.79,0.00013442,2]
[335966913,1724645464741,-724.91,0.00013442,2]
[335966914,1724645464750,-500.0,0.00013442,2]
[335966915,1724645464759,-515.05,0.00013443,2]
[335966916,1724645464768,-500.0,0.00013443,2]
[335966917,1724645464777,-644.1,0.00013443,2]
[335966918,1724645464786,-500.0,0.00013443,2]
[335966919,1724645464795,-500.0,0.00013443,2]
[335966920,1724645464804,-798.6,0.00013443,2]
[335966921,1724645464813,-525.94,0.00013443,2]
[335966922,1724645464822,-513.51,0.00013443,2]
[335966923,1724645464831,-1151.09,0.00013443,2]
[335966924,1724645464840,-500.0,0.00013443,2]
[335966925,1724645464849,-798.58,0.00013443,2]
[335966926,1724645464859,-1105.08,0.00013443,2]
[335966927,1724645464868,-500.0,0.00013443,2]
[335966928,1724645464878,-1042.06,0.00013443,2]
[335966929,1724645464886,-500.0,0.00013443,2]
[335966930,1724645464895,-1190.98,0.00013443,2]
[335966931,1724645464904,-391.8876787,0.00013443,2]
[335966932,1724645464913,-1032.35,0.00013443,2]
[335966933,1724645464922,-678.44,0.00013443,2]
[335966934,1724645464931,-872.9,0.00013443,2]
[335966935,1724645464940,-507.93,0.00013443,2]
[335966936,1724645464950,-500.0,0.00013443,2]
[335966937,1724645464960,-958.35,0.00013443,2]
[335966938,1724645464969,-531.67,0.00013443,2]
[335966939,1724645464978,-1084.3,0.00013443,2]
[335966940,1724645464988,-847.27,0.00013443,2]
[335966941,1724645464997,-861.91,0.00013443,2]
[335966942,1724645465006,-733.62,0.00013443,2]
[335966943,1724645465015,-500.0,0.00013443,2]
[335966944,1724645465024,-545.39,0.00013443,2]
[335966945,1724645465033,-500.0,0.00013443,2]
[335966946,1724645465042,-500.0,0.00013443,2]
[335966947,1724645465051,-811.25,0.00013443,2]
[335966948,1724645465061,-1203.84,0.00013443,2]
[335966949,1724645465069,-645.12,0.00013443,2]
[335966950,1724645465079,-1099.71,0.00013443,2]
[335966951,1724645465088,-822.32,0.00013443,2]
[335966952,1724645465097,-1079.64,0.00013443,2]
[335966953,1724645465107,-528.94,0.00013443,2]
[335966954,1724645465116,-822.12,0.00013443,2]
[335966955,1724645465125,-700.57,0.00013443,2]
[335966956,1724645465134,-539.05,0.00013443,2]
[335966957,1724645465143,-548.49,0.00013443,2]
[335966958,1724645465153,-692.07,0.00013443,2]
[335966959,1724645465162,-803.88,0.00013443,2]
[335966960,1724645465171,-1086.52,0.00013443,2]
[335966961,1724645465180,-508.14,0.00013443,2]
[335966962,1724645465190,-500.0,0.00013444,2]
[335966963,1724645465200,-593.89,0.00013444,2]
[335966964,1724645465209,-500.0,0.00013444,2]
[335966965,1724645465218,-545.01,0.00013444,2]
[335966966,1724645465227,-500.0,0.00013444,2]
[335966967,1724645465236,-500.0,0.00013444,2]
[335966968,1724645465246,-500.0,0.00013444,2]
[335966969,1724645465255,-500.0,0.00013444,2]
[335966970,1724645465264,-500.0,0.00013444,2]
[335966971,1724645465273,-500.0,0.00013444,2]
[335966972,1724645465282,-514.07,0.00013444,2]
[335966973,1724645465291,-500.0,0.00013444,2]
[335966974,1724645465300,-500.0,0.00013444,2]
[335966975,1724645465310,-501.97,0.00013444,2]
[335966976,1724645465321,-638.04063436,0.00013444,2]
[335966977,1724645465331,-500.0,0.00013444,2]
[335966978,1724645465341,-500.0,0.00013444,2]
[335966979,1724645465350,-500.0,0.00013444,2]
[335966980,1724645465360,-500.0,0.00013444,2]
[335966981,1724645465370,-631.52985006,0.00013444,2]
[335966982,1724645465380,-724.1,0.00013444,2]
[335966983,1724645465389,-500.0,0.00013444,2]
[335966984,1724645465400,-656.82,0.00013444,2]
[335966985,1724645465409,-500.0,0.00013444,2]
[335966986,1724645465419,-500.0,0.00013444,2]
[335966987,1724645465428,-500.0,0.00013444,2]
[335966988,1724645465437,-500.0,0.00013444,2]
[335966989,1724645465447,-452.16186496,0.00013444,2]
[335966990,1724645465457,-500.0,0.00013444,2]
[335966991,1724645465466,-601.60220496,0.00013444,2]
[335966992,1724645465475,-523.37,0.00013444,2]
[335966993,1724645465484,-619.4,0.00013444,2]
[335966994,1724645465494,-500.0,0.00013444,2]
[335966995,1724645465503,-500.0,0.00013444,2]
[335966996,1724645465513,-500.0,0.00013444,2]
[335966997,1724645465523,-523.24871223,0.00013444,2]
[335966998,1724645465532,-565.21,0.00013444,2]
[335966999,1724645465541,-500.0,0.00013444,2]
[335967000,1724645465550,-726.33,0.00013444,2]
[335967001,1724645465559,-677.46,0.00013444,2]
[335967002,1724645465569,-798.84,0.00013444,2]
[335967003,1724645465579,-500.0,0.00013444,2]
[335967004,1724645465588,-500.0,0.00013444,2]
[335967005,1724645465598,-656.44,0.00013444,2]
[335967006,1724645465608,-500.0,0.00013444,2]
[335967007,1724645465617,-1151.91,0.00013444,2]
[335967008,1724645465626,-620.1,0.00013444,2]
[335967009,1724645465635,-666.21,0.00013444,2]
[335967010,1724645465645,-500.0,0.00013444,2]
[335967011,1724645465655,-500.0,0.00013444,2]
[335967012,1724645465664,-1276.08,0.00013444,2]
[335967013,1724645465673,-765.97,0.00013444,2]
[335967014,1724645465682,-500.0,0.00013444,2]
[335967015,1724645465691,-658.67,0.00013444,2]
[335967016,1724645465701,-500.0,0.00013444,2]
[335967017,1724645465710,-1851.29332,0.00013444,2]
[335967018,1724645465719,-621.86,0.00013444,2]
[335967019,1724645465729,-1851.293329,0.00013444,2]
[335967020,1724645465738,-931.11,0.00013444,2]
[335967021,1724645465748,-688.42,0.00013444,2]
[335967022,1724645465758,-808.32,0.00013444,2]
[335967023,1724645465767,-500.0,0.00013444,2]
[335967024,1724645465776,-500.0,0.00013444,2]
[335967025,1724645465785,-500.0,0.00013444,2]
[335967026,1724645465794,-500.0,0.00013444,2]
[335967027,1724645465804,-500.0,0.00013444,2]
[335967028,1724645465813,-500.0,0.00013444,2]
[335967029,1724645465822,-409.3532644,0.00013452,2]
[335967030,1724645465831,-409.3532644,0.00013452,2]
[335967031,1724645465841,-409.3532644,0.00013452,2]
[335967032,1724645465850,-409.3532644,0.00013452,2]
[335967033,1724645465859,-409.3532644,0.00013452,2]
[335967034,1724645465868,-409.3532644,0.00013452,2]
[335967035,1724645465878,-409.3532644,0.00013452,2]
[335967036,1724645465887,-409.3532644,0.00013452,2]
[335967037,1724645465896,-409.3532644,0.00013452,2]
[335967038,1724645465906,-409.3532644,0.00013452,2]
[335967039,1724645465916,-409.3532644,0.00013452,2]
[335967040,1724645465925,-409.3532644,0.00013452,2]
[335967041,1724645465934,-406.7906799,0.00013452,2]
[335967042,1724645465943,-184.345463,0.00013473,2]
[335967043,1724645465952,-189.692722,0.00013473,2]
[335967044,1724645465961,-150.990609,0.00013473,2]
[335967045,1724645465970,-284.539087,0.00013473,2]
[335967046,1724645465979,-265.762982,0.00013473,2]
[335967047,1724645465989,-246.112747,0.00013473,2]
[335967048,1724645465998,-169.439022,0.00013473,2]
[335967049,1724645466007,-264.183996,0.00013473,2]
[335967050,1724645466016,-320.781528,0.00013473,2]
[335967051,1724645466026,-180.057979,0.00013473,2]
[335967052,1724645466035,-177.30342,0.00013473,2]
[335967053,1724645466044,-187.831567,0.00013473,2]
[335967054,1724645466053,-188.084711,0.00013473,2]
[335967055,1724645466062,-165.047819,0.00013473,2]
[335967056,1724645466072,-187.921998,0.00013473,2]
[335967057,1724645466081,-284.539085,0.00013473,2]
[335967058,1724645466090,-181.742049,0.00013473,2]
[335967059,1724645466099,-202.627798,0.00013473,2]
[335967060,1724645466109,-168.80354,0.00013473,2]
[335967061,1724645466118,-177.503328,0.00013473,2]
[335967062,1724645466127,-182.24195,0.00013473,2]
[335967063,1724645466137,-184.345463,0.00013473,2]
[335967064,1724645466146,-313.229064,0.00013473,2]
[335967065,1724645466155,-173.499904,0.00013473,2]
[335967066,1724645466164,-177.303423,0.00013473,2]
[335967067,1724645466173,-177.303419,0.00013473,2]
[335967068,1724645466184,-181.4294974,0.00013497,2]
[335967069,1724645466193,-424.04701492,0.00013497,2]
[335967070,1724645466202,-504.87779914,0.000135,7]
[335967071,1724645466212,-465.12548873,0.00013507,2]
[335967072,1724645466221,-1500.0,0.00013519,2]
[335967073,1724645466230,-9666.3354033,0.00013596,2]
[335967074,1724645466240,-1767.29008818,0.00013597,2]
[335967075,1724645466250,-2283.63676209,0.00013597,3]
[335967076,1724645466259,-780.60811079,0.00013597,2]
[335967077,1724645466269,-2379.07435713,0.00013599,2]
[335967078,1724645466279,-729.31646428,0.00013599,2]
[335967079,1724645466288,-272.31321847,0.00013599,2]
[335967080,1724645466297,-200.4444051,0.00013599,2]
[335967081,1724645466307,-150.0,0.000136,30]
[335967082,1724645466318,-300.383296,0.000136,4]
[335967083,1724645466329,-150.990609,0.00013641,2]
[335967084,1724645466339,-265.762982,0.00013641,2]
[335967085,1724645466349,-246.112747,0.00013641,2]
[335967086,1724645466358,-264.183996,0.00013641,2]
[335967087,1724645466368,-320.781528,0.00013641,2]
[335967088,1724645466378,-313.229064,0.00013641,2]
[335967089,1724645466387,-787.05388668,0.00013645,2]
[335967090,1724645466397,-535.0,0.0001366,2]
[335967091,1724645466407,-3072.3922616,0.0001366,2]
[335967092,1724645466416,-54109.52319784,0.00013666,2]
[335967093,1724645466425,-742.68,0.00013687,2]
[335967094,1724645466435,-209.80090891,0.00013688,2]
[335967095,1724645466444,-165.047819,0.00013697,2]
[335967096,1724645466454,-181.742049,0.00013697,2]
[335967097,1724645466463,-465.59267063,0.00013698,2]
[335967098,1724645466472,-500.0,0.00013698,2]
[335967099,1724645466481,-500.0,0.00013698,2]
[335967100,1724645466491,-192.59728744,0.00013698,2]
[335967101,1724645466500,-500.0,0.00013698,2]
[335967102,1724645466510,-500.0,0.00013698,2]
[335967103,1724645466521,-624.38952461,0.00013698,2]
[335967104,1724645466531,-500.0,0.00013698,2]
[335967105,1724645466540,-500.0,0.00013698,2]
[335967106,1724645466549,-500.0,0.00013698,2]
[335967107,1724645466558,-500.0,0.00013698,2]
[335967108,1724645466567,-500.0,0.00013698,2]
[335967109,1724645466576,-500.0,0.00013698,2]
[335967110,1724645466586,-500.0,0.00013698,2]
[335967111,1724645466596,-648.74256015,0.00013698,2]
[335967112,1724645466605,-500.0,0.00013698,2]
[335967113,1724645466614,-500.0,0.00013698,2]
[335967114,1724645466623,-500.0,0.00013698,2]
[335967115,1724645466632,-500.0,0.00013698,2]
[335967116,1724645466642,-500.0,0.00013698,2]
[335967117,1724645466651,-500.0,0.00013698,2]
[335967118,1724645466660,-500.0,0.00013698,2]
[335967119,1724645466669,-500.0,0.00013698,2]
[335967120,1724645466678,-500.0,0.00013698,2]
[335967121,1724645466688,-500.0,0.00013698,2]
[335967122,1724645466698,-500.0,0.00013698,2]
[335967123,1724645466707,-500.0,0.00013698,2]
[335967124,1724645466717,-500.0,0.00013698,2]
[335967125,1724645466726,-500.0,0.00013698,2]
[335967126,1724645466736,-500.0,0.00013698,2]
[335967127,1724645466745,-500.0,0.00013698,2]
[335967128,1724645466754,-500.0,0.00013698,2]
[335967129,1724645466764,-502.05692139,0.00013698,2]
[335967130,1724645466774,-873.03,0.00013698,2]
[335967131,1724645466783,-8163.02,0.00013698,2]
[335967132,1724645466793,-500.0,0.00013698,2]
[335967133,1724645466803,-737.56,0.00013698,2]
[335967134,1724645466812,-500.0,0.00013698,2]
[335967135,1724645466821,-665.66,0.00013698,2]
[335967136,1724645466832,-1018.93,0.00013698,2]
[335967137,1724645466841,-12437.77,0.00013698,2]
[335967138,1724645466850,-633.34,0.00013698,2]
[335967139,1724645466859,-500.0,0.00013699,2]
[335967140,1724645466868,-151.0,0.00013699,2]
[335967141,1724645466878,-151.0,0.00013699,2]
[335967142,1724645466887,-151.0,0.00013699,2]
[335967143,1724645466897,-151.0,0.00013699,2]
[335967144,1724645466906,-173.745874,0.00013699,2]
[335967145,1724645466915,-151.0,0.00013699,2]
[335967146,1724645466925,-151.0,0.00013699,2]
[335967147,1724645466934,-151.0,0.00013699,2]
[335967148,1724645466944,-151.0,0.00013699,2]
[335967149,1724645466953,-151.0,0.00013699,2]
[335967150,1724645466963,-237.697313,0.00013699,2]
[335967151,1724645466972,-151.0,0.00013699,2]
[335967152,1724645466982,-151.0,0.00013699,2]
[335967153,1724645466993,-151.0,0.00013699,2]
[335967154,1724645467003,-251.539874,0.00013699,2]
[335967155,1724645467012,-151.0,0.00013699,2]
[335967156,1724645467021,-151.0,0.00013699,2]
[335967157,1724645467031,-151.0,0.00013699,2]
[335967158,1724645467041,-151.463524,0.00013699,2]
[335967159,1724645467051,-151.0,0.00013699,2]
[335967160,1724645467060,-151.0,0.00013699,2]
[335967161,1724645467070,-151.0,0.00013699,2]
[335967162,1724645467080,-151.0,0.00013699,2]
[335967163,1724645467089,-151.0,0.00013699,2]
[335967164,1724645467099,-151.0,0.00013699,2]
[335967165,1724645467108,-151.0,0.00013699,2]
[335967166,1724645467117,-151.0,0.00013699,2]
[335967167,1724645467126,-152.684132,0.00013699,2]
[335967168,1724645467136,-151.0,0.00013699,2]
[335967169,1724645467145,-151.0,0.00013699,2]
[335967170,1724645467155,-151.0,0.00013699,2]
[335967171,1724645467164,-151.0,0.00013699,2]
[335967172,1724645467173,-151.0,0.00013699,2]
[335967173,1724645467183,-151.0,0.00013699,2]
[335967174,1724645467192,-151.0,0.00013699,2]
[335967175,1724645467201,-203.443569,0.00013699,2]
[335967176,1724645467211,-151.0,0.00013699,2]
[335967177,1724645467220,-199.020436,0.00013699,2]
[335967178,1724645467230,-151.0,0.00013699,2]
[335967179,1724645467239,-151.0,0.00013699,2]
[335967180,1724645467249,-151.0,0.00013699,2]
[335967181,1724645467258,-151.0,0.00013699,2]
[335967182,1724645467268,-192.047282,0.00013699,2]
[335967183,1724645467277,-151.0,0.00013699,2]
[335967184,1724645467287,-151.0,0.00013699,2]
[335967185,1724645467296,-151.0,0.00013699,2]
[335967186,1724645467307,-151.0,0.00013699,2]
[335967187,1724645467318,-151.0,0.00013699,2]
[335967188,1724645467329,-151.572648,0.00013699,2]
[335967189,1724645467338,-53032.0785655,0.00013699,2]
[335967190,1724645467348,-151.0,0.00013699,2]
[335967191,1724645467357,-153.429114,0.00013699,2]
[335967192,1724645467367,-151.0,0.00013699,2]
[335967193,1724645467550,-151.0,0.00013699,2]
[335967194,1724645467561,-151.0,0.00013699,2]
[335967195,1724645467570,-151.0,0.00013699,2]
[335967196,1724645467580,-151.0,0.00013699,2]
[335967197,1724645467589,-151.0,0.00013699,2]
[335967198,1724645467598,-151.835295,0.00013699,2]
[335967199,1724645467608,-2035.438232,0.00013699,2]
[335967200,1724645467617,-278.952411,0.00013699,2]
[335967201,1724645467626,-278.952411,0.00013699,2]
[335967202,1724645467635,-278.952411,0.00013699,2]
[335967203,1724645467644,-278.952411,0.00013699,2]
[335967204,1724645467653,-151.0,0.00013699,2]
[335967205,1724645467662,-278.952411,0.00013699,2]
[335967206,1724645467671,-151.0,0.00013699,2]
[335967207,1724645467681,-278.952411,0.00013699,2]
[335967208,1724645467690,-151.0,0.00013699,2]
[335967209,1724645467702,-278.952411,0.00013699,2]
[335967210,1724645467711,-278.952411,0.00013699,2]
[335967211,1724645467721,-151.0,0.00013699,2]
[335967212,1724645467730,-278.952411,0.00013699,2]
[335967213,1724645467738,-151.274653,0.00013699,2]
[335967214,1724645467747,-278.952411,0.00013699,2]
[335967215,1724645467756,-278.952411,0.00013699,2]
[335967216,1724645467765,-278.952411,0.00013699,2]
[335967217,1724645467775,-278.952411,0.00013699,2]
[335967218,1724645467784,-278.952411,0.00013699,2]
[335967219,1724645467793,-278.952411,0.00013699,2]
[335967220,1724645467802,-278.952411,0.00013699,2]
[335967221,1724645467811,-278.952411,0.00013699,2]
[335967222,1724645467823,-311.075971,0.00013699,2]
[335967223,1724645467833,-278.952411,0.00013699,2]
[335967224,1724645467842,-311.075971,0.00013699,2]
[335967225,1724645467851,-311.075971,0.00013699,2]
[335967226,1724645467860,-311.075971,0.00013699,2]
[335967227,1724645467869,-311.075971,0.00013699,2]
[335967228,1724645467878,-311.075971,0.00013699,2]
[335967229,1724645467887,-311.075971,0.00013699,2]
[335967230,1724645467897,-311.075971,0.00013699,2]
[335967231,1724645467906,-311.075971,0.00013699,2]
[335967232,1724645467915,-311.075971,0.00013699,2]
[335967233,1724645467924,-311.075971,0.00013699,2]
[335967234,1724645467933,-311.075971,0.00013699,2]
[335967235,1724645467943,-311.075971,0.00013699,2]
[335967236,1724645467962,-311.075971,0.00013699,2]
[335967237,1724645467971,-311.075971,0.00013699,2]
[335967238,1724645467980,-311.075971,0.00013699,2]
[335967239,1724645467990,-311.075971,0.00013699,2]
[335967240,1724645467999,-311.075971,0.00013699,2]
[335967241,1724645468008,-151.0,0.00013699,2]
[335967242,1724645468017,-240.802712,0.00013699,2]
[335967243,1724645468026,-3499.218766,0.00013699,2]
[335967244,1724645468036,-151.0,0.00013699,2]
[335967245,1724645468045,-151.0,0.00013699,2]
[335967246,1724645468054,-151.117491,0.00013699,2]
[335967247,1724645468063,-289.472047,0.00013699,2]
[335967248,1724645468073,-151.0,0.00013699,2]
[335967249,1724645468082,-151.0,0.00013699,2]
[335967250,1724645468092,-151.0,0.00013699,2]
[335967251,1724645468101,-151.0,0.00013699,2]
[335967252,1724645468111,-151.0,0.00013699,2]
[335967253,1724645468119,-151.0,0.00013699,2]
[335967254,1724645468129,-151.0,0.00013699,2]
[335967255,1724645468140,-151.0,0.00013699,2]
[335967256,1724645468151,-151.0,0.00013699,2]
[335967257,1724645468162,-151.0,0.00013699,2]
[335967258,1724645468172,-151.0,0.00013699,2]
[335967259,1724645468182,-151.0,0.00013699,2]
[335967260,1724645468191,-207.298305,0.00013699,2]
[335967261,1724645468204,-151.0,0.00013699,2]
[335967262,1724645468214,-291.930741,0.00013699,2]
[335967263,1724645468224,-151.0,0.00013699,2]
[335967264,1724645468234,-151.0,0.00013699,2]
[335967265,1724645468243,-151.0,0.00013699,2]
[335967266,1724645468253,-151.0,0.00013699,2]
[335967267,1724645468262,-151.0,0.00013699,2]
[335967268,1724645468272,-151.0,0.00013699,2]
[335967269,1724645468282,-151.0,0.00013699,2]
[335967270,1724645468291,-151.0,0.00013699,2]
[335967271,1724645468301,-151.0,0.00013699,2]
[335967272,1724645468311,-151.0,0.00013699,2]
[335967273,1724645468321,-151.0,0.00013699,2]
[335967274,1724645468332,-151.0,0.00013699,2]
[335967275,1724645468341,-151.0,0.00013699,2]
[335967276,1724645468351,-151.0,0.00013699,2]
[335967277,1724645468361,-151.0,0.00013699,2]
[335967278,1724645468370,-151.0,0.00013699,2]
[335967279,1724645468379,-212.826589,0.00013699,2]
[335967280,1724645468389,-189.32443,0.00013699,2]
[335967281,1724645468398,-189.32443,0.00013699,2]
[335967282,1724645468410,-189.32443,0.00013699,2]
[335967283,1724645468421,-474.896281,0.00013699,2]
[335967284,1724645468431,-189.32443,0.00013699,2]
[335967285,1724645468441,-474.896281,0.00013699,2]
[335967286,1724645468452,-189.32443,0.00013699,2]
[335967287,1724645468461,-474.896281,0.00013699,2]
[335967288,1724645468470,-189.32443,0.00013699,2]
[335967289,1724645468479,-474.896281,0.00013699,2]
[335967290,1724645468489,-189.32443,0.00013699,2]
[335967291,1724645468498,-474.896281,0.00013699,2]
[335967292,1724645468508,-474.896281,0.00013699,2]
[335967293,1724645468517,-189.32443,0.00013699,2]
[335967294,1724645468528,-474.896281,0.00013699,2]
[335967295,1724645468540,-189.32443,0.00013699,2]
[335967296,1724645468550,-474.896281,0.00013699,2]
[335967297,1724645468562,-189.32443,0.00013699,2]
[335967298,1724645468571,-474.896281,0.00013699,2]
[335967299,1724645468580,-189.32443,0.00013699,2]
[335967300,1724645468590,-474.896281,0.00013699,2]
[335967301,1724645468599,-189.32443,0.00013699,2]
[335967302,1724645468609,-474.896281,0.00013699,2]
[335967303,1724645468622,-189.32443,0.00013699,2]
[335967304,1724645468632,-474.896281,0.00013699,2]
[335967305,1724645468641,-474.896281,0.00013699,2]
[335967306,1724645468652,-189.32443,0.00013699,2]
[335967307,1724645468662,-474.896281,0.00013699,2]
[335967308,1724645468672,-189.32443,0.00013699,2]
[335967309,1724645468681,-474.896281,0.00013699,2]
[335967310,1724645468690,-189.32443,0.00013699,2]
[335967311,1724645468701,-474.896281,0.00013699,2]
[335967312,1724645468711,-189.32443,0.00013699,2]
[335967313,1724645468720,-474.896281,0.00013699,2]
[335967314,1724645468730,-189.32443,0.00013699,2]
[335967315,1724645468740,-189.32443,0.00013699,2]
[335967316,1724645468750,-474.896281,0.00013699,2]
[335967317,1724645468760,-189.324423,0.00013699,2]